Cogmind - Beta 15 @@@ ROGUE MODE // 2025.08.02 @ 16:14:23 Player: SirusTheMadDJ Result: Destroyed by X-57 Shotgunner with Shotgun Performance ------------- Evolutions (2) 1000 Regions Visited (3) 600 Robots Destroyed (74) 370 Value Destroyed (2205) 2205 Prototype IDs (5) 100 Alien Tech Used (0) 0 Bonus (286) 286 TOTAL SCORE: 4561 Bonus ------- High Alert Combat Kills 323 Friendly Fire -37 Cogmind --------- Core Integrity 0/550 Matter 83/300 Energy 82/150 System Corruption 11% Temperature Hot (200) Movement Core (500) Ox9 Location -8/Materials Parts ------- > --- POWER (1) -------- Light Angular Momentum Engine > --- PROPULSION (4) --- (None) > --- UTILITY (4) ------ Large Storage Unit Visual Processing Unit > --- WEAPON (2) ------- (None) > --- INVENTORY (15) --- Aluminum Leg Hacking Suite Improved Medium Laser Datajack Peak State ------------ > --- POWER ------------ Light Angular Momentum Engine > --- PROPULSION ------- Light Treads Light Treads Armored Treads Armored Treads > --- UTILITY ---------- Medium Storage Unit Advanced Weight Redist. System Visual Processing Unit Core Analyzer > --- WEAPON ----------- Heavy EM Shotgun Gauss Cannon > --- INVENTORY -------- Aluminum Leg Salvage Targeting Computer Hacking Suite Improved Medium Laser Assault Cannon Assault Cannon Rocket Launcher Datajack [Rating: 32] Favorites ----------- Power Light Nuclear Core Engine Light Ion Engine Power Core Light Nuclear Core Propulsion Aluminum Leg Treads Armored Treads Leg Aluminum Leg Hover Unit Aerolev Unit Utility Visual Processing Unit Device Advanced Weight Redist. System Storage Medium Storage Unit Processor Visual Processing Unit Protection Medium Armor Plating Weapon Beam Cannon Energy Gun Field Laser Energy Cannon Beam Cannon Ballistic Gun Heavy Assault Rifle Ballistic Cannon Gauss Cannon Launcher Rocket Launcher Build | -11 -10 -10 -8 ------- Run | Yrd Mat Sub Mat Slots Evolved 4 | . . . 4 Power . | . . . . Propulsion 2 | . . . 2 Utility 2 | . . . 2 Weapon . | . . . . Parts Attached 53 | 6 9 1 37 Power 10 | 1 1 1 7 Engine 6 | 1 1 1 3 Core 4 | . . . 4 Reactor . | . . . . Propulsion 17 | 2 2 . 13 Treads 6 | . . . 6 Leg 9 | 2 2 . 5 Wheel . | . . . . Hover 2 | . . . 2 Flight . | . . . . Utility 9 | 1 2 . 6 Device 1 | . . . 1 Storage 3 | 1 1 . 1 Processor 3 | . 1 . 2 Hackware . | . . . . Protection 2 | . . . 2 Artifact . | . . . . Weapon 17 | 2 4 . 11 Energy Gun 5 | 1 . . 4 Energy Cannon 2 | . 2 . . Ballistic Gun 4 | 1 1 . 2 Ballistic Cannon 4 | . . . 4 Launcher 2 | . 1 . 1 Special Weapon . | . . . . Impact Weapon . | . . . . Slashing Weapon . | . . . . Piercing Weapon . | . . . . Special Melee Weapon . | . . . . Unidentified Prototypes 5 | . . . 5 Parts Lost 17 | . . 1 16 Power 3 | . . 1 2 Propulsion 6 | . . . 6 Utility 4 | . . . 4 Weapon 4 | . . . 4 Highest Loss Streak 11 | . . 1 11 To Critical Strikes . | . . . . Average Backups 7 | 1 6 9 8 Power . | . 1 . . Propulsion 1 | 1 2 4 . Utility 1 | . . 2 2 Weapon 2 | . 2 2 3 Tool/Special . | . . . . Unused Backups 5 | . . . 5 Power . | . . . . Propulsion 2 | . . . 2 Utility 2 | . . . 2 Weapon . | . . . . Tool/Special 1 | . . . 1 Average Slot Usage (%) 93 | . 92 99 92 Engine 7 | . 14 13 3 Core 3 | . . . 5 Treads 7 | . . . 12 Leg 19 | . 28 28 12 Hover 2 | . . . 4 Storage 11 | . 14 14 9 Processor 13 | . 6 14 16 Protection 4 | . . . 8 Energy Gun 2 | . 2 . 2 Energy Cannon 9 | . 17 28 1 Ballistic Gun 4 | . 8 . 4 Ballistic Cannon 5 | . . . 9 Peak Build Rating 32 | 6 9 9 32 Average Rating 18 | 4 7 8 26 On Entrance 6 | . 6 9 9 Naked Turns . | . . . . Heaviest Build 41 | 12 21 21 41 Greatest Support 82 | 20 20 20 82 Greatest Overweight (x) 9 | . 1 1 9 Average Overweight (x) . | . . . . Largest Inventory Capacity 15 | 8 10 10 15 Average Capacity 10 | 6 9 10 11 Most Carried 10 | 3 10 10 10 Average Carried 7 | 1 6 9 8 Final Capacity 15 | 8 10 10 15 Final Carried 10 | 3 10 9 4 Class Distribution -------------------- 58% | Scavenger-Mutant 41% | Mutant Dominant Class ---------------- Mutant | -10/Materials Scavenger-Mutant | -10/Subcaves Scavenger-Mutant | -8/Materials Resources | -11 -10 -10 -8 ----------- Run | Yrd Mat Sub Mat Matter Collected 1601 | 92 340 10 1159 Remotely . | . . . . Salvage Created 2537 | . 536 98 1903 Parts 137 | . 36 7 94 Haulers Intercepted 6 | . 2 . 4 Recyclers Shooed 3 | . 1 . 2 Parts Field Recycled . | . . . . Retrieved Matter . | . . . . Parts Self-Destructed 10 | . . 10 . Prevented . | . . . . Kills | -11 -10 -10 -8 ------- Run | Yrd Mat Sub Mat Combat Hostiles Destroyed 48 | . 10 4 34 Melee 1 | . . . 1 Guns 7 | . 2 . 5 Cannons 30 | . 6 3 21 AOE 9 | . 2 . 7 Classes Destroyed 14 | . 7 1 6 Worker 4 | . 1 . 3 Builder 1 | . . . 1 Tunneler 1 | . . . 1 Hauler 6 | . 2 . 4 Recycler 5 | . 1 . 4 Mechanic 1 | . . . 1 Operator 2 | . 1 . 1 Watcher 6 | . 3 . 3 Swarmer 11 | . 5 4 2 Grunt 26 | . 5 . 21 Brawler 1 | . . . 1 Duelist 3 | . . . 3 Sentry 7 | . . . 7 Scientist 1 | . . 1 . Best Kill Streak 15 | . 4 3 15 Combat Bots Only 12 | . 3 3 12 Max Kills in Single Turn 3 | . 2 1 3 Gunslinging . | . . . . Exploded 2 | . 2 . 2 Melee 1 | . . . 1 Uniques/NPCs Destroyed . | . . . . Combat | -11 -10 -10 -8 -------- Run | Yrd Mat Sub Mat Hostile Shots Fired 371 | . 57 39 275 Missed 117 | . 20 12 85 Hits 254 | . 37 27 190 Melee 6 | . . . 6 Projectile 248 | . 37 27 184 Critical Strikes 13 | . . . 13 Damage Taken 3747 | . 332 264 3151 Core 668 | . 97 17 554 Absorbed by Shields . | . . . . Core Remaining (%) 77 | 100 . 54 . Volleys Fired 174 | . 47 11 116 Largest 2 | . 2 2 2 Hottest 123 | . 120 120 123 Shots Fired 339 | . 86 22 231 Gun 121 | . 44 . 77 Cannon 205 | . 40 22 143 Launcher 13 | . 2 . 11 Special . | . . . . Kinetic 213 | . 44 . 169 Thermal 95 | . 40 22 33 Explosive 13 | . 2 . 11 Electromagnetic 18 | . . . 18 Robot Hit Streak 15 | . 5 1 15 Robot Miss Streak 6 | . 6 6 4 Penetration Max 1 | . . . 1 Secondary Targets . | . . . . Shots Hit Robots 191 | . 38 6 147 Core Hits 126 | . 27 4 95 Critical Kills 2 | . 1 1 . Critical Parts Destroyed 1 | . 1 . . Critical Strikes 12 | . 2 1 9 Meltdown 1 | . . 1 . Destroy 2 | . 2 . . Blast 9 | . . . 9 Melee Attacks . | . . . . Impact . | . . . . Slashing . | . . . . Piercing . | . . . . Sneak Attacks . | . . . . Combat Hostiles . | . . . . Follow-up Attacks . | . . . . Damage Inflicted 5359 | . 689 140 4530 Guns 980 | . 212 . 768 Cannons 2982 | . 331 140 2511 Explosions 1387 | . 137 . 1250 Melee . | . . . . Ramming 10 | . 9 . 1 Kinetic 2946 | . 212 . 2734 Thermal 994 | . 331 140 523 Explosive 1074 | . 137 . 937 Electromagnetic 335 | . . . 335 Impact . | . . . . Slashing . | . . . . Piercing . | . . . . Highest Corruption 11 | . . . 11 Average Corruption 5 | . . . 5 Corruption Purged . | . . . . Corruption Blocked . | . . . . Effects 21 | . . . 21 Message Errors 6 | . . . 6 Matter Fused 3 | . . . 3 Heat Flow Errors 1 | . . . 1 Energy Discharges 3 | . . . 3 Parts Rejected 1 | . . . 1 Data Loss (minor) 4 | . . . 4 Misfires 2 | . . . 2 Alerts 1 | . . . 1 Overload Shots . | . . . . Overflow Damage 29 | . 4 . 25 Projectiles 29 | . 4 . 25 Explosions . | . . . . Melee . | . . . . Knockbacks 25 | . . . 25 Impact . | . . . . Kinetic 23 | . . . 23 Secondary 2 | . . . 2 Self-Inflicted Damage 152 | . . . 152 Shots 5 | . . . 5 Rammed . | . . . . Targets Rammed 2 | . 1 . 1 Kicked 1 | . 1 . . Crushed 1 | . . . 1 Highest Temperature 337 | . 283 . 337 Average Temperature 75 | . 90 . 71 Received Heat Transfer 1317 | . 57 . 1260 Effects 1 | . 1 . . Energy Bleed 1 | . 1 . . Siege Activations . | . . . . Martial Activations . | . . . . Shielding Activations . | . . . . Robots Disrupted . | . . . . Combat Hostiles . | . . . . Robots Corrupted . | . . . . Combat Hostiles . | . . . . Parts Fried . | . . . . Impact Corruptions . | . . . . Robots Melted 1 | . . 1 . Combat Hostiles 1 | . . 1 . Parts Melted 2 | . 2 . . Heat Transferred 1928 | . 703 296 929 Parts Sabotaged . | . . . . Parts Stolen . | . . . . Parts Stripped . | . . . . Power Chain Reactions 2 | . . . 2 Alert | -11 -10 -10 -8 ------- Run | Yrd Mat Sub Mat Maximum Alert Level 3 | . . . 3 Low Security (%) 74 | 100 100 . 61 Level 1 2 | . . . 4 Level 2 1 | . . . 2 Level 3 20 | . . . 31 Level 4 . | . . . . Level 5 . | . . . . High Security . | . . . . Max Security . | . . . . Peak Influence 908 | . 96 . 908 Initial . | . . . . Average 215 | . 42 . 304 Influence Increases 1835 | . 350 90 1395 Destroy 0b10 Robot/C 960 | . 200 80 680 Destroy 0b10 Robot/NC 130 | . 40 . 90 Destroy Leader 234 | . 60 10 164 Disable Machine 120 | . 15 . 105 Anti-Garrison Action 150 | . . . 150 Destroy Structure 136 | . 20 . 116 Lose Combat Pursuer 105 | . 15 . 90 Influence Decreases 1038 | . 302 138 598 Entered New Map 24 | . . 24 . Time Decay 854 | . 302 114 438 Lost Part 160 | . . . 160 Squads Dispatched 14 | . 3 . 11 Investigation 2 | . 1 . 1 Extermination . | . . . . Reinforcement 7 | . 2 . 5 Assault 4 | . . . 4 Garrison 1 | . . . 1 Intercept . | . . . . Searches Triggered . | . . . . Construction Impeded 1 | . . . 1 Haulers Reinforced . | . . . . Active Scanning Responses . | . . . . Cargo Convoy Interrupts . | . . . . Stealth | -11 -10 -10 -8 --------- Run | Yrd Mat Sub Mat Distress Signals 5 | . 2 . 3 Communications Jammed . | . . . . Distress Signals . | . . . . Times Spotted 89 | . 17 3 69 Peak Tracking Total 15 | . 5 3 15 Tactical Retreats 6 | . 1 . 5 Traps | -11 -10 -10 -8 ------- Run | Yrd Mat Sub Mat Traps Triggered 3 | . 1 1 1 Indirectly . | . . . . Trap Hack Attempts . | . . . . Triggered . | . . . . Disarmed . | . . . . Reprogrammed . | . . . . Reused . | . . . . Traps Extracted . | . . . . Installed . | . . . . Triggered . | . . . . Machines | -11 -10 -10 -8 ---------- Run | Yrd Mat Sub Mat Machines Disabled 9 | . 1 . 8 Max in Single Turn 2 | . 1 . 2 Garrison Access 1 | . . . 1 Machines Repaired . | . . . . Machines Dismantled . | . . . . Machines Sabotaged . | . . . . Overloaded Fab Kills . | . . . . Hacking | -11 -10 -10 -8 --------- Run | Yrd Mat Sub Mat Machines Accessed 1 | . . . 1 Terminals 1 | . . . 1 Fabricators . | . . . . Repair Stations . | . . . . Recycling Units . | . . . . Scanalyzers . | . . . . Garrison Access . | . . . . Total Hacks 4 | . . . 4 Successful 3 | . . . 3 Failed 1 | . . . 1 Catastrophic 1 | . . . 1 Database Lockouts . | . . . . Manual 1 | . . . 1 Terminals 4 | . . . 4 Fabricators . | . . . . Repair Stations . | . . . . Recycling Units . | . . . . Scanalyzers . | . . . . Garrison Access . | . . . . Terminal Hacks 3 | . . . 3 Record 3 | . . . 3 Fabricator Hacks . | . . . . Repair Station Hacks . | . . . . Recycling Unit Hacks . | . . . . Scanalyzer . | . . . . Garrison Access Hacks . | . . . . Unauthorized Hacks . | . . . . Terminals . | . . . . Fabricators . | . . . . Repair Stations . | . . . . Recycling Units . | . . . . Scanalyzers . | . . . . Garrison Access . | . . . . Data Cores Recovered 1 | . . . 1 Used . | . . . . Hacking Detections 1 | . . . 1 Full Trace Events . | . . . . Feedback Events . | . . . . Feedback Blocked . | . . . . Robot Schematics Acquired . | . . . . Robots Built . | . . . . Authchips . | . . . . Time . | . . . . Total Robot Build Rating . | . . . . Part Schematics Acquired . | . . . . Parts Built . | . . . . Authchips . | . . . . Time . | . . . . Total Part Build Rating . | . . . . Parts Repaired . | . . . . Time . | . . . . Parts Recycled . | . . . . Recycled Matter . | . . . . Retrieved Matter . | . . . . Retrieved Components . | . . . . Parts Scanalyzed . | . . . . Part Schematics Acquired . | . . . . Parts Damaged . | . . . . Bothacking | -11 -10 -10 -8 ------------ Run | Yrd Mat Sub Mat Used RIF Installer . | . . . . Robots Hacked . | . . . . Non-combat . | . . . . Combat . | . . . . Robot Hacks Applied . | . . . . Relay Couplers Released 2 | . . . 2 Machine Destruction 2 | . . . 2 Fabnet Peak Effective % . | . . . . Robots Rewired . | . . . . Allies Hacked . | . . . . Hacks Repelled . | . . . . Allies | -11 -10 -10 -8 -------- Run | Yrd Mat Sub Mat Total Allies . | . . . . Largest Group . | . . . . Highest-Rated Group . | . . . . Highest-Rated Ally . | . . . . Total Orders . | . . . . Ally Attacks . | . . . . Total Damage . | . . . . Kills . | . . . . Allies Corrupted . | . . . . Allies Melted . | . . . . Intel | -11 -10 -10 -8 ------- Run | Yrd Mat Sub Mat Active Infowar (turns) 2446 | . 373 420 1653 Optics 2446 | . 373 420 1653 Robot Analysis Total . | . . . . Derelict Logs Recovered 1 | . . 1 . Drone Launches . | . . . . Drone Recoveries . | . . . . Exploration | -11 -10 -10 -8 ------------- Run | Yrd Mat Sub Mat Turns Passed 2909 | 69 767 420 1653 Spaces Moved 1815 | 53 499 293 970 Core 12 | 10 . . 2 Treads 268 | . . . 268 Legs 1213 | 43 499 293 378 Wheels . | . . . . Hover 322 | . . . 322 Flight . | . . . . Fastest Speed 46 | 50 120 120 46 Average Speed 122 | 106 122 131 121 Slowest Speed 500 | 120 190 190 500 Overloaded Moves . | . . . . Propulsion Burnouts . | . . . . Robots Hopped . | . . . . Potential Cave-ins . | . . . . Cave-ins Triggered . | . . . . Exploration Rate (%) 44 | 5 83 22 68 Regions Visited 3 Branch Regions 1 Pre-discovered Areas 1 | . . 1 . Known Exits Taken . | . . . . Unknown Exits Taken 3 | 1 1 1 . Scrap Searched 1 | . . 1 . Spaces Dug . | . . . . Terrain Destroyed 136 | . 17 . 119 Melee . | . . . . Projectile 38 | . . . 38 AOE 98 | . 17 . 81 Terrain Rammed . | . . . . Walls Destroyed . | . . . . Machines Disabled . | . . . . Actions | -11 -10 -10 -8 --------- Run | Yrd Mat Sub Mat Total 2159 | 62 574 304 1219 Wait 39 | 1 . . 38 Move 1812 | 52 498 292 970 Hop . | . . . . Pick Up 32 | 3 10 . 19 Fast Attach 22 | 6 2 . 14 Attach 14 | . . 1 13 Detach 2 | . . . 2 Swap 29 | . 9 . 20 Drop 33 | . 7 . 26 Fire 174 | . 47 11 116 Melee . | . . . . Ram . | . . . . Kick 1 | . 1 . . Crush 1 | . . . 1 Escape Stasis . | . . . . Rewire . | . . . . Trap . | . . . . Miscellaneous . | . . . . Route ------- -11/Scrapyard -10/Materials (discovered 4 exits: [*Mat x2] / [*Min] / [*Sub]) -10/Subcaves -8/Materials (discovered 2 exits: [*Fac x2]) History --------- Turn | Location | Event 51 | -11/Scrapyard | Discovered new exit (range 15) 70 | -11/Scrapyard | Entered Materials 177 | -10/Materials | Discovered new exit (range 16) 317 | -10/Materials | Build established: Mutant 522 | -10/Materials | Discovered new exit (range 7) 786 | -10/Materials | Discovered new exit (range 4) 830 | -10/Materials | Discovered new exit (range 7) 837 | -10/Materials | Entered Subcaves 838 | -10/Subcaves | Approached by a straggling Scientist 867 | -10/Subcaves | Learned location of Zion (-6) 915 | -10/Subcaves | Build established: Scavenger-Mutant 1208 | -10/Subcaves | Discovered new exit (range 9) 1214 | -10/Subcaves | A swath of the cavern ceiling suddenly collapsed 1257 | -10/Subcaves | Entered Materials 1257 | -8/Materials | Evolved 4 slots: Propulsion x2, Utility x2 1733 | -8/Materials | Discovered new exit (range 9) 2169 | -8/Materials | Build established: Mutant 2262 | -8/Materials | Garrison activated, responded to threat 2421 | -8/Materials | Destroyed 12 combat bots 2421 | -8/Materials | Discovered new exit (range 10) 2526 | -8/Materials | Build established: Scavenger-Mutant 2857 | -8/Materials | First assault squad dispatched 2890 | -8/Materials | Core integrity fell below 50% 2909 | -8/Materials | Core integrity fell below 20% 2909 | -8/Materials | System corruption reached 10% 2910 | -8/Materials | Destroyed by X-57 Shotgunner with Shotgun Last Messages --------------- U-05 Engineer builds a Wall. H-61 Shepherd calls for reinforcements. ALERT: Hostile activity reported, dispatching reinforcements to area. M-28 Smith repairs G-50 Soldier. Gauss Cannon destroyed. Nuclear Core destroyed. System corrupted by crushing effect (+1). Lgt. Treads destroyed. Slug penetrates Wall. Assault Cannon blasted off. Adv. Treads destroyed. Assault Cannon destroyed. Salvage Targeting Computer destroyed. System corrupted by crushing effect (+5). Knocked back. U-05 Engineer builds a Wall. Acquired 2 matter. Slug penetrates Wall. Hvy. EM Shotgun destroyed. Map ----- +----------------------------------------------------+ | ???????????????????????????????????? | | ???????????????????????????????????? | | ???????????????????????????????????? | | ???????????????????????????????????? | | ???????????????????????????????????? | | ???????????????????????????????????? | | ???????????????????????????????????? | | ???????????????????????????????????? | | ???????????????????????????????????? | | ???????????????????????????????????? | | ???????????????????????????????????? | | ???????????????????????????????????? | | ???????????????????????????????????? | | ????????????????????????!??????????? | | ?????????????????????? ?????????? | | ????????????????????? % ??????? | | ??????????########?? ??????? | | ??????????# #? #?????? | | ??????????# """ #"%" ?? #?????? | | ??????????#= """ + ??? % #?????? | | ??????????#% """ # ??""" +?????? | | ??????????#* % # """"" #?????? | | ?????????##%Hu ] # """"" #?????? | | ????????##gg;;#### """ #?????? | | ????????#mx g #??# ! #?????? | | ????????#%g@g #?## ####### | | ?######## bb #??T """ # | | ?# """ #??# """"" # """ | | ?# "T" ##??# """"" # R" | | ?# i ##?## """"" # """ | | ?#!= g #?# """ % #= | | ##!!! =+ #?# # | | # *!* "*#i% #?# + "" | | ##*! """ # #?# %!#%""" | | ?#![ """ # #?# !#[""" | | ?#! # % #?# ######## | | ?########## x### ############## | | ??????????# | | ??????????# ! | | ??????????# | | ??????????############ ########### | | ???????##########????# #????###### | | ???????# #????# #?????????# | | ???????# """ #????# #?????????# | | ???????# "Y" #????# #?????????# | | ???????# #????# #?????????# | | ???????# ###### ########??# | | ???????# """ # # """ !#??## | | ???????# """ # # """ #???? | | ???????# """ + ### # """ #???? | +----------------------------------------------------+ Best States ------------- Heat Dissipation 31 Energy Generation 18 Energy Capacity 280 Matter Stores 300 Matter Capacity 300 Sight Range 18 Terrain Scan Density 10 Additional Mass Support 9 Armor Coverage 450 Evasion (%) 55 Core Analysis 6 Recoil Reduction 4 Salvage Targeting 1 Item Schematics ----------------- None Robot Schematics ------------------ None Fabricated ------------ Nothing Repaired ---------- Nothing Alien Tech Used ----------------- None Achievements -------------- None Challenges ------------ None Game ------ Seed GravjetFrostMapper Manual? 0 Play Time 00:33:34 Cumulative 16.4 hours Start 2025.08.02 @ 15:41:05 End 2025.08.02 @ 16:14:23 Sessions 1 Manual Loads 0 Difficulty Rogue Special Mode None Game No. 37 Rogue 37 Adventurer 0 Explorer 0 Win Type - Total 0 Types 0/0/0/0/0/0/0/0/0/0 Lore% 13 Gallery% 17 Achievement% 17 Wizard Run 0 Options --------- Layout 1 ASCII 0 Keyboard 0 Movement Mouse Keybinds 0 Fullscreen 1 Font 24/Smallcaps Map View 50x35 Zoom Use 0% Tactical HUD 0 Map Filters NONE Filters NONE Steam 1 RUN: 2401c486-62b5-43f9-9d37-6b8f0779affc